Cogmind - Beta 16 @@@ ROGUE MODE // 2025.11.19 @ 14:12:07 Player: oshi0ne1 Result: Destroyed by D-53 Grenadier with Mini Grenade Launcher Performance ------------- Evolutions (1) 500 Regions Visited (3) 600 Robots Destroyed (39) 195 Value Destroyed (861) 861 Prototype IDs (0) 0 Alien Tech Used (0) 0 Bonus (0) 0 TOTAL SCORE: 2156 Bonus ------- None Cogmind --------- Core Integrity 0/400 Matter 258/300 Energy 100/100 System Corruption 0% Temperature Cool (0) Movement Core (800) Ox15 Location -9/Mines Parts ------- > --- POWER (1) -------- (None) > --- PROPULSION (2) --- (None) > --- UTILITY (4) ------ High-capacity Storage Unit Signal Interpreter Field Recycling Unit > --- WEAPON (2) ------- (None) > --- INVENTORY (20) --- Ion Engine Light Ion Engine Light Ion Engine Advanced Treads Advanced Treads Wheel Compact Wheel Improved Heat Sink Advanced Targeting Computer Minigun Minigun Minigun Minigun Datajack Peak State ------------ > --- POWER ------------ Improved Ion Engine > --- PROPULSION ------- Advanced Treads Advanced Treads > --- UTILITY ---------- High-capacity Storage Unit Sensor Array Signal Interpreter Field Recycling Unit > --- WEAPON ----------- Minigun Minigun > --- INVENTORY -------- Ion Engine Light Ion Engine Advanced Treads Advanced Treads Wheel Compact Wheel Improved Heat Sink Advanced Targeting Computer Minigun Minigun Grenade Launcher Rocket Launcher Datajack [Rating: 21] Favorites ----------- Power Improved Ion Engine Engine Improved Ion Engine Propulsion Advanced Treads Treads Advanced Treads Wheel Compact Wheel Utility High-capacity Storage Unit Device Sensor Array Storage High-capacity Storage Unit Processor Signal Interpreter Weapon Minigun Energy Gun Small Laser Ballistic Gun Minigun Launcher Grenade Launcher Build | -11 -10 -9 -9 ------- Run | Yrd Mat Mat Min Slots Evolved 2 | . . 2 . Power . | . . . . Propulsion . | . . . . Utility 2 | . . 2 . Weapon . | . . . . Parts Attached 23 | 9 4 9 1 Power 2 | 1 . 1 . Engine 2 | 1 . 1 . Core . | . . . . Reactor . | . . . . Propulsion 6 | 4 . 2 . Treads 4 | 2 . 2 . Leg . | . . . . Wheel 2 | 2 . . . Hover . | . . . . Flight . | . . . . Utility 6 | 2 1 3 . Device 3 | 1 . 2 . Storage 2 | 1 1 . . Processor 1 | . . 1 . Hackware . | . . . . Protection . | . . . . Artifact . | . . . . Weapon 9 | 2 3 3 1 Energy Gun 1 | 1 . . . Energy Cannon . | . . . . Ballistic Gun 6 | 1 3 2 . Ballistic Cannon . | . . . . Launcher 2 | . . 1 1 Special Weapon . | . . . . Impact Weapon . | . . . . Slashing Weapon . | . . . . Piercing Weapon . | . . . . Special Melee Weapon . | . . . . Unidentified Prototypes . | . . . . Parts Lost 9 | . 3 . 6 Power 1 | . . . 1 Propulsion 3 | . 1 . 2 Utility 1 | . . . 1 Weapon 4 | . 2 . 2 Highest Loss Streak 6 | . 3 . 6 To Critical Strikes . | . . . . Average Backups 10 | 3 6 8 13 Power 1 | . 1 1 2 Propulsion 2 | 1 1 2 4 Utility 1 | . . 1 2 Weapon 3 | . 2 2 4 Tool/Special . | . . . . Unused Backups 12 | . 1 2 9 Power 2 | . . . 2 Propulsion 4 | . . 2 2 Utility 2 | . . . 2 Weapon 3 | . 1 . 2 Tool/Special 1 | . . . 1 Average Slot Usage (%) 98 | . 97 97 99 Engine 11 | . 13 11 10 Treads 19 | . 22 11 21 Wheel 3 | . 4 9 . Device 19 | . 14 21 21 Storage 11 | . 14 11 11 Processor 8 | . . 10 11 Ballistic Gun 22 | . 26 21 21 Peak Build Rating 21 | 7 7 21 21 Average Rating 15 | 5 6 15 20 On Entrance 8 | . 7 7 21 Avg Prop Armor Cover (%) . | . . . . Naked Turns . | . . . . Heaviest Build 62 | 14 50 62 62 Greatest Support 44 | 40 40 44 44 Greatest Overweight (x) 19 | . 2 19 1 Average Overweight (x) . | . . 1 1 Largest Inventory Capacity 20 | 8 20 20 20 Average Capacity 18 | 7 15 20 20 Most Carried 14 | 4 8 13 14 Average Carried 10 | 3 6 8 13 Final Capacity 20 | 8 20 20 20 Final Carried 14 | 4 4 13 14 Class Distribution -------------------- 100% | Mutant Dominant Class ---------------- Mutant | -10/Materials Mutant | -9/Materials Mutant | -9/Mines Resources | -11 -10 -9 -9 ----------- Run | Yrd Mat Mat Min Matter Collected 1161 | 270 323 340 228 Remotely . | . . . . Salvage Created 1187 | 52 371 677 87 Parts 66 | 4 25 32 5 Haulers Intercepted . | . . . . Recyclers Shooed 1 | . 1 . . Parts Field Recycled 14 | . . 8 6 Retrieved Matter 40 | . . 28 12 Parts Self-Destructed . | . . . . Prevented . | . . . . Parts Restored . | . . . . Kills | -11 -10 -9 -9 ------- Run | Yrd Mat Mat Min Combat Hostiles Destroyed 35 | . 12 17 6 Guns 35 | . 12 17 6 Classes Destroyed 6 | 1 3 2 . Worker 1 | . 1 . . Tunneler 2 | 2 . . . Recycler 1 | . . 1 . Swarmer 18 | . 6 6 6 Grunt 14 | . 6 8 . Sentry 3 | . . 3 . Best Kill Streak 5 | 2 4 5 3 Combat Bots Only 5 | . 4 5 3 Max Kills in Single Turn 2 | 1 2 2 1 Gunslinging . | . . . . Exploded . | . . . . Melee . | . . . . Uniques/NPCs Destroyed . | . . . . Combat | -11 -10 -9 -9 -------- Run | Yrd Mat Mat Min Hostile Shots Fired 255 | . 106 94 55 Missed 68 | . 28 29 11 Hits 187 | . 78 65 44 Projectile 187 | . 78 65 44 AOE 12 | . . . 12 Critical Strikes 1 | . . 1 . Damage Taken 2234 | . 763 748 723 Core 595 | . 195 252 148 Absorbed by Shields . | . . . . Regen/Repaired (Parts) 54 | . 54 . . Core Remaining (%) 61 | 100 22 . . Volleys Fired 113 | 2 42 49 20 Largest 2 | 2 2 2 2 Hottest 63 | 60 40 50 63 Shots Fired 221 | 4 81 97 39 Gun 215 | 4 81 96 34 Cannon . | . . . . Launcher 6 | . . 1 5 Special . | . . . . Kinetic 213 | 2 81 96 34 Thermal 2 | 2 . . . Explosive 6 | . . 1 5 Electromagnetic . | . . . . Robot Hit Streak 14 | 1 10 14 4 Robot Miss Streak 5 | 1 3 5 3 Penetration Max . | . . . . Secondary Targets 8 | . 3 3 2 Max Gunslinging Chain 1 | . 1 1 1 Shots Hit Robots 141 | 2 54 67 18 Core Hits 63 | 2 21 27 13 Critical Kills 2 | . 2 . . Critical Parts Destroyed 2 | . 1 1 . Critical Strikes 4 | . 3 1 . Destroy 4 | . 3 1 . Melee Attacks . | . . . . Impact . | . . . . Slashing . | . . . . Piercing . | . . . . Sneak Attacks . | . . . . Combat Hostiles . | . . . . Follow-up Attacks . | . . . . Damage Inflicted 2277 | 26 760 1131 360 Guns 2189 | 26 760 1131 272 Cannons . | . . . . Explosions 88 | . . . 88 Melee . | . . . . Ramming . | . . . . Kinetic 2189 | 26 760 1131 272 Thermal . | . . . . Explosive 88 | . . . 88 Electromagnetic . | . . . . Impact . | . . . . Slashing . | . . . . Piercing . | . . . . Highest Corruption 1 | . 1 . . Average Corruption 1 | . 1 . . Corruption Purged . | . . . . Corruption Blocked . | . . . . Effects 2 | . 2 . . Matter Fused 1 | . 1 . . Alerts 1 | . 1 . . Overload Shots . | . . . . Overflow Damage . | . . . . Projectiles . | . . . . Explosions . | . . . . Melee . | . . . . Knockbacks . | . . . . Impact . | . . . . Kinetic . | . . . . Secondary . | . . . . Self-Inflicted Damage . | . . . . Shots . | . . . . Rammed . | . . . . Targets Rammed . | . . . . Kicked . | . . . . Crushed . | . . . . Highest Temperature 35 | . 13 35 12 Average Temperature 7 | . 5 8 6 Received Heat Transfer 531 | . 240 273 18 Siege Activations . | . . . . Martial Activations . | . . . . Shielding Activations . | . . . . Robots Disrupted . | . . . . Combat Hostiles . | . . . . Robots Corrupted . | . . . . Combat Hostiles . | . . . . Parts Fried . | . . . . Impact Corruptions . | . . . . Robots Melted . | . . . . Combat Hostiles . | . . . . Parts Melted . | . . . . Heat Transferred . | . . . . Parts Sabotaged . | . . . . Parts Stolen . | . . . . Parts Stripped . | . . . . Power Chain Reactions . | . . . . Alert | -11 -10 -9 -9 ------- Run | Yrd Mat Mat Min Maximum Alert Level 1 | . . 1 . Low Security (%) 97 | 100 100 89 100 Level 1 2 | . . 10 . Level 2 . | . . . . Level 3 . | . . . . Level 4 . | . . . . Level 5 . | . . . . High Security . | . . . . Max Security . | . . . . Peak Influence 229 | 5 145 229 137 Initial 82 | . . 37 82 Average 51 | . 75 82 30 Influence Increases 963 | 10 335 454 164 Destroy 0b10 Robot/C 700 | . 240 340 120 Destroy 0b10 Robot/NC 20 | 10 5 5 . Destroy Leader 140 | . 40 80 20 Successful Hack 5 | . 5 . . Disable Machine 15 | . . 15 . Destroy Structure 23 | . . 14 9 Lose Combat Pursuer 60 | . 45 . 15 Influence Decreases 963 | 10 246 330 377 Entered New Map 183 | . . 52 131 Time Decay 741 | 10 216 278 237 Lost Part 39 | . 30 . 9 Squads Dispatched 4 | . 2 2 . Investigation 4 | . 2 2 . Extermination . | . . . . Reinforcement . | . . . . Assault . | . . . . Garrison . | . . . . Intercept . | . . . . Searches Triggered . | . . . . Construction Impeded . | . . . . Haulers Reinforced . | . . . . Active Scanning Responses . | . . . . Cargo Convoy Interrupts . | . . . . Stealth | -11 -10 -9 -9 --------- Run | Yrd Mat Mat Min Distress Signals 2 | . 1 1 . Communications Jammed . | . . . . Distress Signals . | . . . . Times Spotted 54 | . 18 25 11 Peak Tracking Total 7 | . 6 7 4 Tactical Retreats 4 | . 3 . 1 Traps | -11 -10 -9 -9 ------- Run | Yrd Mat Mat Min Traps Triggered 3 | . 1 2 . Indirectly . | . . . . Trap Hack Attempts . | . . . . Triggered . | . . . . Disarmed . | . . . . Reprogrammed . | . . . . Reused . | . . . . Traps Extracted . | . . . . Installed . | . . . . Triggered . | . . . . Machines | -11 -10 -9 -9 ---------- Run | Yrd Mat Mat Min Machines Disabled 1 | . . 1 . Max in Single Turn 1 | . . 1 . Machines Repaired . | . . . . Machines Dismantled . | . . . . Machines Sabotaged . | . . . . Overloaded Fab Kills . | . . . . Hacking | -11 -10 -9 -9 --------- Run | Yrd Mat Mat Min Machines Accessed 6 | . 3 3 . Terminals 5 | . 2 3 . Fabricators . | . . . . Repair Stations 1 | . 1 . . Recycling Units . | . . . . Scanalyzers . | . . . . Garrison Access . | . . . . Total Hacks 16 | . 8 8 . Successful 6 | . 4 2 . Failed 10 | . 4 6 . Catastrophic 1 | . . 1 . Database Lockouts . | . . . . Manual . | . . . . Terminals 14 | . 6 8 . Fabricators . | . . . . Repair Stations 2 | . 2 . . Recycling Units . | . . . . Scanalyzers . | . . . . Garrison Access . | . . . . Terminal Hacks 4 | . 2 2 . Alert Level 2 | . 1 1 . Hauler Manifests 2 | . 1 1 . Fabricator Hacks . | . . . . Repair Station Hacks 2 | . 2 . . Scan Component 1 | . 1 . . Repair 1 | . 1 . . Recycling Unit Hacks . | . . . . Scanalyzer . | . . . . Garrison Access Hacks . | . . . . Unauthorized Hacks . | . . . . Terminals . | . . . . Fabricators . | . . . . Repair Stations . | . . . . Recycling Units . | . . . . Scanalyzers . | . . . . Garrison Access . | . . . . Data Cores Recovered . | . . . . Used . | . . . . Hacking Detections 4 | . 2 2 . Full Trace Events 2 | . 1 1 . Feedback Events 1 | . 1 . . Corruption 1 | . 1 . . Feedback Blocked . | . . . . Robot Schematics Acquired . | . . . . Robots Built . | . . . . Authchips . | . . . . Time . | . . . . Total Robot Build Rating . | . . . . Part Schematics Acquired . | . . . . Parts Built . | . . . . Authchips . | . . . . Time . | . . . . Total Part Build Rating . | . . . . Part Studies Acquired . | . . . . Parts Repaired 1 | . 1 . . Time 26 | . 26 . . Parts Recycled . | . . . . Recycled Matter . | . . . . Retrieved Matter . | . . . . Retrieved Components . | . . . . Parts Scanalyzed . | . . . . Part Schematics Acquired . | . . . . Parts Damaged . | . . . . Bothacking | -11 -10 -9 -9 ------------ Run | Yrd Mat Mat Min Used RIF Installer . | . . . . Robots Hacked . | . . . . Non-combat . | . . . . Combat . | . . . . Robot Hacks Applied . | . . . . Relay Couplers Released . | . . . . Fabnet Peak Effective % . | . . . . Robots Rewired . | . . . . Allies Hacked . | . . . . Hacks Repelled . | . . . . Allies | -11 -10 -9 -9 -------- Run | Yrd Mat Mat Min Total Allies 1 | . . . 1 Largest Group 1 | . . . 1 Highest-Rated Group 31 | . . . 31 Highest-Rated Ally 31 | . . . 31 Total Orders . | . . . . Ally Attacks . | . . . . Total Damage . | . . . . Kills . | . . . . Allies Corrupted . | . . . . Allies Melted . | . . . . Intel | -11 -10 -9 -9 ------- Run | Yrd Mat Mat Min Active Infowar (turns) 2588 | 83 637 616 1252 Sensors 1828 | . . 576 1252 Seismic 817 | 83 637 97 . Robot Analysis Total . | . . . . Derelict Logs Recovered 1 | . . . 1 Drone Launches . | . . . . Drone Recoveries . | . . . . Exploration | -11 -10 -9 -9 ------------- Run | Yrd Mat Mat Min Turns Passed 2682 | 171 637 616 1258 Spaces Moved 972 | 68 240 282 382 Core 4 | 3 . 1 . Treads 703 | 57 167 97 382 Legs . | . . . . Wheels 265 | 8 73 184 . Hover . | . . . . Flight . | . . . . Fastest Speed 50 | 50 105 105 225 Average Speed 186 | 147 173 155 225 Slowest Speed 1000 | 160 320 1000 225 Overloaded Moves . | . . . . Propulsion Burnouts . | . . . . Robots Hopped . | . . . . Potential Cave-ins . | . . . . Cave-ins Triggered . | . . . . Exploration Rate (%) 37 | 4 52 33 62 Regions Visited 3 Branch Regions 1 Pre-discovered Areas . | . . . . Known Exits Taken 1 | . . 1 . Unknown Exits Taken 2 | 1 1 . . Scrap Searched 1 | . . . 1 Spaces Dug . | . . . . Terrain Destroyed 43 | . . 12 31 Melee . | . . . . Projectile . | . . . . AOE 43 | . . 12 31 Terrain Rammed . | . . . . Walls Destroyed . | . . . . Machines Disabled . | . . . . Actions | -11 -10 -9 -9 --------- Run | Yrd Mat Mat Min Total 1632 | 130 379 375 748 Wait 491 | 48 82 18 343 Move 969 | 67 239 281 382 Hop . | . . . . Pick Up 20 | 4 5 10 1 Fast Attach 14 | 7 2 5 . Attach 6 | . 4 2 . Detach 2 | . . 2 . Swap 8 | 2 1 3 2 Drop 9 | . 4 5 . Fire 113 | 2 42 49 20 Melee . | . . . . Ram . | . . . . Kick . | . . . . Crush . | . . . . Escape Stasis . | . . . . Rewire . | . . . . Trap . | . . . . Miscellaneous . | . . . . Route ------- -11/Scrapyard -10/Materials (discovered 2 exits: *Mat x2) -9/Materials -9/Mines (discovered 1 exit: *Mat) History --------- Turn | Location | Event 19 | -11/Scrapyard | Discovered new exit (range 16) 172 | -11/Scrapyard | Entered Materials 301 | -10/Materials | Build established: Mutant 457 | -10/Materials | Discovered new exit (range 14) 625 | -10/Materials | Core integrity fell below 50% 660 | -10/Materials | Discovered new exit (range 15) 677 | -10/Materials | Lost 3 parts (1n2w) 779 | -10/Materials | Repaired Ion Engine 809 | -10/Materials | Entered another Materials area 809 | -9/Materials | Evolved 2 slots: Utility x2 1292 | -9/Materials | Core integrity fell below 50% 1391 | -9/Materials | Discovered new exit (range 15) 1423 | -9/Materials | Identified exit to Mines 1425 | -9/Materials | Entered Mines 1437 | -9/Mines | Learned Materials garrison access intel 2610 | -9/Mines | Discovered new exit (range 14) 2635 | -9/Mines | Identified exit to Materials 2660 | -9/Mines | Received a Mining Laser from a helpful Derelict 2661 | -9/Mines | Assembled infested the area 2666 | -9/Mines | Assisted by a Guerilla fighting off Assembled 2672 | -9/Mines | Core integrity fell below 20% 2683 | -9/Mines | Destroyed by D-53 Grenadier with Mini Grenade Launcher Last Messages --------------- PW-BTA(g): "You're apparently new around these parts, I'll cover you." A derelict emerges from the shadows: "You need to get out of here! I've been tracking a group of Assembled to figure out where they're coming from, and they're closing on this area, come on!" Adv. Treads destroyed. The unstable cave ceiling collapses. Sensor Array destroyed. Imp. Ion Engine destroyed. Adv. Treads destroyed. Rocket Launcher destroyed. The unstable cave ceiling collapses. HV Slug penetrates D-53 Grenadier. D-53 Grenadier suffers critical hit (Destroy). D-53 Grenadier destroyed. The unstable cave ceiling collapses. D-53 Grenadier knocked back. Grenade Launcher destroyed. Map ----- +----------------------------------------------------+ | | | | | | | | | | | | | | | | | | | | | ?????????????????????????????????????????? | | ?????????????????####????????????????????? | | ????????????????## ##????#?##???????????? | | ????????????????# < #?### # #???????????? | | ????????????????# != ### ##??????????? | | ?######????????## ### #??????????? | | ?# ##??????## ### #??????????? | | ?# #?????## d ##?????????? | | ## #?????## % #?????##??? | | ## #?????# #### #??? #?? | | # #?????# ##? % #? ??? | | ##++##?????## ### # """???? | | #??????## ! g """???? | | #????### # # """???? | | ##???## [ ## ## # #??? ??? | | ######## ##?### @ #???????#?? | | ###?# ] ##????# ##?????????? | | #???# ##### ##?????# #??????????? | | ????# #???####??????## ##??????????? | | ????# #??????????????## #???????????? | | ????# #???????????????##### ???????????? | | ????# #????????????????????####??????????? | | ????# #??????????????????????????????????? | | ????# #??????????????????????????????????? | | ????# #??????????????????????????????????? | | ##### #??????????????????????????????????? | | #??????????????????????????????????? | | #######??????????????????????????????????? | | ?????????????????????????????????????????? | | ?????????????????????????????????????????? | | ?????????????????????????????????????????? | | ?????????????????????????????????????????? | | #????????????????????????????????????????? | | #????????????????????????????????????????? | | #????????????????????????????????????????? | | #????????????????????????????????????????? | | #????????????????????????????????????????? | | ## #?????????????????????????????????????? | | #?????????????????????????????????????? | | ## #?????????????????????????????????????? | +----------------------------------------------------+ Best States ------------- Heat Dissipation 28 Energy Generation 12 Energy Capacity 265 Matter Stores 300 Matter Capacity 300 Sight Range 16 Robot Scan Range 14 Terrain Scan Density 10 Evasion (%) 40 Recoil Reduction 2 Item Schematics ----------------- None Robot Schematics ------------------ None Fabricated ------------ Nothing Repaired ---------- Ion Engine | 10% | -10/Materials Studied --------- None Alien Tech Used ----------------- None Achievements -------------- None Challenges ------------ None Game ------ Seed LinearMetafieldHammerchucker Manual? 0 Play Time 00:15:10 Cumulative 23.0 hours Start 2025.11.19 @ 13:59:59 End 2025.11.19 @ 14:12:07 Sessions 1 Manual Loads 0 Difficulty Rogue Special Mode None Game No. 45 Rogue 11 Adventurer 34 Explorer 0 Win Type - Total 0 Types 0/0/0/0/0/0/0/0/0/0 Lore% 14 Gallery% 25 Achievement% 20 Wizard Run 0 Options --------- Layout 2 ASCII 0 Keyboard 0 Movement Mouse Keybinds 0 Fullscreen 1 Font 24/Smallcaps Map View 50x44 Zoom Use 0% Tactical HUD 0 Map Filters NONE Filters NONE Steam 1 RUN: e69cd50d-9c7b-48b1-8882-51bece9a27eb